[Event "*** MasterClass Titled Tuesday Blitz"]
[Site "Chess.com"]
[Date "2017.09.05"]
[Round "5"]
[White "champ2005"]
[Black "Sanan_Sjugirov"]
[Result "0-1"]
[WhiteElo "2492"]
[BlackElo "2646"]
[TimeControl "180+2"]
[EndTime "14:15:22 PDT"]
[Termination "Sanan_Sjugirov won by resignation"]

1. e4 {[%clk 0:02:59.7]} 1... g6 {[%clk 0:02:59]} 2. d4 {[%clk 0:03:00.1]} 2...
Bg7 {[%clk 0:03:00.3]} 3. Nf3 {[%clk 0:03:01.5]} 3... c6 {[%clk 0:03:01.3]} 4.
c3 {[%clk 0:03:01.7]} 4... d6 {[%clk 0:03:01.7]} 5. Bd3 {[%clk 0:03:02.3]} 5...
Nf6 {[%clk 0:03:02.3]} 6. h3 {[%clk 0:03:02.7]} 6... O-O {[%clk 0:03:03.3]} 7.
O-O {[%clk 0:03:03.8]} 7... Nbd7 {[%clk 0:03:04.5]} 8. Na3 {[%clk 0:03:00.6]}
8... e5 {[%clk 0:02:58]} 9. dxe5 {[%clk 0:02:53.6]} 9... dxe5 {[%clk 0:02:58.7]}
10. Nc4 {[%clk 0:02:54.4]} 10... Qc7 {[%clk 0:02:59.8]} 11. Bc2 {[%clk
0:02:53.3]} 11... Rd8 {[%clk 0:02:32.7]} 12. Qd6 {[%clk 0:02:42.7]} 12... Qxd6
{[%clk 0:02:33.3]} 13. Nxd6 {[%clk 0:02:44.6]} 13... Bf8 {[%clk 0:02:24.8]} 14.
Nxc8 {[%clk 0:02:42.8]} 14... Raxc8 {[%clk 0:02:26]} 15. Be3 {[%clk 0:02:42.5]}
15... Bc5 {[%clk 0:02:24.1]} 16. Bg5 {[%clk 0:02:41.1]} 16... Kg7 {[%clk
0:02:22.8]} 17. Rfd1 {[%clk 0:02:40]} 17... h6 {[%clk 0:02:22.7]} 18. Bxf6+
{[%clk 0:02:38.4]} 18... Kxf6 {[%clk 0:02:12.8]} 19. Kf1 {[%clk 0:02:19]} 19...
Nf8 {[%clk 0:02:02.1]} 20. Rxd8 {[%clk 0:02:18.6]} 20... Rxd8 {[%clk 0:02:04]}
21. Rd1 {[%clk 0:02:19.6]} 21... Re8 {[%clk 0:01:57.2]} 22. Bb3 {[%clk
0:02:06.8]} 22... a5 {[%clk 0:01:52.4]} 23. a4 {[%clk 0:02:07]} 23... g5 {[%clk
0:01:45.1]} 24. Ng1 {[%clk 0:02:02.8]} 24... h5 {[%clk 0:01:24.1]} 25. Ne2
{[%clk 0:02:02]} 25... h4 {[%clk 0:01:25.4]} 26. Ng1 {[%clk 0:01:54.4]} 26...
Ke7 {[%clk 0:01:23.6]} 27. Nf3 {[%clk 0:01:54.8]} 27... f6 {[%clk 0:01:24.8]}
28. Nh2 {[%clk 0:01:52.4]} 28... Ng6 {[%clk 0:01:22.3]} 29. Ng4 {[%clk
0:01:51.4]} 29... Rh8 {[%clk 0:01:23.3]} 30. Nh2 {[%clk 0:01:44.3]} 30... Nf4
{[%clk 0:01:23.8]} 31. Ng4 {[%clk 0:01:42.6]} 31... b5 {[%clk 0:01:05.2]} 32.
axb5 {[%clk 0:01:13.1]} 32... cxb5 {[%clk 0:01:06]} 33. Nh2 {[%clk 0:01:09.3]}
33... a4 {[%clk 0:01:04.3]} 34. Bc2 {[%clk 0:01:00.6]} 34... Ra8 {[%clk
0:00:50.1]} 35. Ng4 {[%clk 0:00:57.3]} 35... a3 {[%clk 0:00:51.4]} 36. b4 {[%clk
0:00:45.4]} 36... Bb6 {[%clk 0:00:48.5]} 37. Ra1 {[%clk 0:00:46.4]} 37... a2
{[%clk 0:00:45.9]} 38. Bb3 {[%clk 0:00:18]} 38... Ra3 {[%clk 0:00:46.4]} 39.
Bxa2 {[%clk 0:00:19.3]} 39... Rxc3 {[%clk 0:00:41.1]} 40. Bg8 {[%clk 0:00:17.8]}
40... Rc8 {[%clk 0:00:37.3]} 41. Bh7 {[%clk 0:00:18.5]} 41... Bd4 {[%clk
0:00:37]} 42. Rb1 {[%clk 0:00:17.6]} 42... Rc2 {[%clk 0:00:36.5]} 43. Nh6 {[%clk
0:00:16.1]} 43... Rxf2+ {[%clk 0:00:36.5]} 44. Ke1 {[%clk 0:00:17.4]} 44... Nd3+
{[%clk 0:00:34.9]} 0-1

[Event "*** MasterClass Titled Tuesday Blitz"]
[Site "Chess.com"]
[Date "2017.09.05"]
[Round "5"]
[White "Me_ch_an"]
[Black "nickmatta"]
[Result "0-1"]
[WhiteElo "2211"]
[BlackElo "2324"]
[TimeControl "180+2"]
[EndTime "14:15:26 PDT"]
[Termination "nickmatta won on time"]

1. e4 {[%clk 0:03:01.9]} 1... c5 {[%clk 0:03:00.7]} 2. Na3 {[%clk 0:03:00.8]}
2... e6 {[%clk 0:02:55.9]} 3. f4 {[%clk 0:02:53.2]} 3... d5 {[%clk 0:02:49]} 4.
e5 {[%clk 0:02:52.9]} 4... h5 {[%clk 0:02:43.8]} 5. Nf3 {[%clk 0:02:52.1]} 5...
Nh6 {[%clk 0:02:42.9]} 6. c3 {[%clk 0:02:51.7]} 6... Nf5 {[%clk 0:02:31.1]} 7.
Nc2 {[%clk 0:02:47.5]} 7... d4 {[%clk 0:02:29]} 8. Bd3 {[%clk 0:02:38.2]} 8...
Nc6 {[%clk 0:02:23.1]} 9. O-O {[%clk 0:02:23.5]} 9... Be7 {[%clk 0:02:08.6]} 10.
Qe2 {[%clk 0:02:14.9]} 10... b6 {[%clk 0:01:47.6]} 11. Be4 {[%clk 0:02:14.1]}
11... Bb7 {[%clk 0:01:46.1]} 12. d3 {[%clk 0:02:08.7]} 12... Qd7 {[%clk
0:01:41]} 13. Qf2 {[%clk 0:01:58.1]} 13... O-O-O {[%clk 0:01:30.3]} 14. a4
{[%clk 0:01:55]} 14... Na5 {[%clk 0:01:15.3]} 15. Nd2 {[%clk 0:01:26.8]} 15...
dxc3 {[%clk 0:01:04.9]} 16. bxc3 {[%clk 0:01:26]} 16... Ba6 {[%clk 0:01:06.4]}
17. c4 {[%clk 0:01:13.4]} 17... Nd4 {[%clk 0:00:46.5]} 18. Nxd4 {[%clk
0:01:09.4]} 18... Qxd4 {[%clk 0:00:48.4]} 19. Qxd4 {[%clk 0:01:03.6]} 19... Rxd4
{[%clk 0:00:49.1]} 20. Nf3 {[%clk 0:01:04.2]} 20... Rd7 {[%clk 0:00:46.6]} 21.
Rb1 {[%clk 0:01:03.8]} 21... Bb7 {[%clk 0:00:41.9]} 22. Bxb7+ {[%clk 0:00:55.5]}
22... Kxb7 {[%clk 0:00:43.8]} 23. Rd1 {[%clk 0:00:43.6]} 23... Nxc4 {[%clk
0:00:41.5]} 24. Kf2 {[%clk 0:00:29.5]} 24... Rhd8 {[%clk 0:00:40.3]} 25. Ne1
{[%clk 0:00:29.8]} 25... Na5 {[%clk 0:00:35.9]} 26. Be3 {[%clk 0:00:28.6]} 26...
Nc6 {[%clk 0:00:32.5]} 27. Ke2 {[%clk 0:00:23.4]} 27... Nd4+ {[%clk 0:00:29]}
28. Kf2 {[%clk 0:00:23.6]} 28... Nf5 {[%clk 0:00:29.1]} 29. g3 {[%clk
0:00:19.9]} 29... h4 {[%clk 0:00:27.8]} 30. g4 {[%clk 0:00:18]} 30... Nxe3
{[%clk 0:00:29.3]} 31. Kxe3 {[%clk 0:00:19.7]} 31... Rd4 {[%clk 0:00:30.9]} 32.
a5 {[%clk 0:00:18.4]} 32... g5 {[%clk 0:00:31.7]} 33. axb6 {[%clk 0:00:14.3]}
33... axb6 {[%clk 0:00:33.7]} 34. fxg5 {[%clk 0:00:09.1]} 34... Bxg5+ {[%clk
0:00:34.5]} 35. Kf3 {[%clk 0:00:08.2]} 35... Rf4+ {[%clk 0:00:35.6]} 36. Ke2
{[%clk 0:00:08.4]} 36... Rxg4 {[%clk 0:00:36.5]} 37. Nf3 {[%clk 0:00:03.8]}
37... Bf4 {[%clk 0:00:34.2]} 38. h3 {[%clk 0:00:03.1]} 38... Rg2+ {[%clk
0:00:34.7]} 39. Kf1 {[%clk 0:00:03.2]} 39... Rg3 {[%clk 0:00:32]} 40. Ke2 {[%clk
0:00:03.7]} 40... Rxh3 {[%clk 0:00:31.6]} 41. Rh1 {[%clk 0:00:04.9]} 41... Rxh1
{[%clk 0:00:31.7]} 42. Rxh1 {[%clk 0:00:06.8]} 42... Bg3 {[%clk 0:00:31.6]} 43.
Nxh4 {[%clk 0:00:04.4]} 43... Rh8 {[%clk 0:00:31.9]} 0-1

[Event "*** MasterClass Titled Tuesday Blitz"]
[Site "Chess.com"]
[Date "2017.09.05"]
[Round "5"]
[White "Alexander_Moskalenko"]
[Black "JaimeSantosLatasa"]
[Result "1/2-1/2"]
[WhiteElo "2662"]
[BlackElo "2573"]
[TimeControl "180+2"]
[EndTime "14:15:27 PDT"]
[Termination "Game drawn - insufficient material"]

1. c4 {[%clk 0:03:01.9]} 1... e5 {[%clk 0:02:59.6]} 2. Nc3 {[%clk 0:03:03.1]}
2... Nc6 {[%clk 0:03:00.1]} 3. g3 {[%clk 0:03:03.7]} 3... Bc5 {[%clk 0:03:00.8]}
4. Bg2 {[%clk 0:03:04.2]} 4... d6 {[%clk 0:03:01.9]} 5. e3 {[%clk 0:03:03]} 5...
a6 {[%clk 0:03:03]} 6. Nge2 {[%clk 0:03:01.8]} 6... Ba7 {[%clk 0:03:03.8]} 7. b3
{[%clk 0:03:03]} 7... h5 {[%clk 0:03:03.4]} 8. h3 {[%clk 0:03:01.6]} 8... h4
{[%clk 0:03:02.8]} 9. g4 {[%clk 0:03:03]} 9... f5 {[%clk 0:03:03.9]} 10. gxf5
{[%clk 0:03:02.1]} 10... Bxf5 {[%clk 0:03:05.8]} 11. Bb2 {[%clk 0:03:02.1]}
11... Nf6 {[%clk 0:03:06.4]} 12. d4 {[%clk 0:02:56.5]} 12... Qd7 {[%clk
0:03:04.6]} 13. Nd5 {[%clk 0:02:46.1]} 13... O-O-O {[%clk 0:03:01.1]} 14. Nxf6
{[%clk 0:02:44.5]} 14... gxf6 {[%clk 0:03:01.4]} 15. Qd2 {[%clk 0:02:46.4]}
15... Rhg8 {[%clk 0:02:59.5]} 16. Bd5 {[%clk 0:02:43.7]} 16... Rh8 {[%clk
0:02:57.6]} 17. O-O-O {[%clk 0:02:44.8]} 17... Ne7 {[%clk 0:02:40.2]} 18. Bg2
{[%clk 0:02:34.6]} 18... Rdg8 {[%clk 0:02:39.9]} 19. Rdg1 {[%clk 0:02:29.4]}
19... Rxg2 {[%clk 0:02:28.3]} 20. Rxg2 {[%clk 0:02:30.2]} 20... Be4 {[%clk
0:02:29.4]} 21. Rgh2 {[%clk 0:02:31.3]} 21... Bxh1 {[%clk 0:02:29.2]} 22. Rxh1
{[%clk 0:02:33.2]} 22... Rg8 {[%clk 0:02:29.8]} 23. Rh2 {[%clk 0:02:27]} 23...
Qf5 {[%clk 0:02:28.5]} 24. Bc3 {[%clk 0:02:27.5]} 24... Qf3 {[%clk 0:02:26]} 25.
Qd3 {[%clk 0:02:28.5]} 25... Nf5 {[%clk 0:02:24.4]} 26. Kc2 {[%clk 0:02:20.9]}
26... c6 {[%clk 0:02:17.6]} 27. dxe5 {[%clk 0:02:16.5]} 27... dxe5 {[%clk
0:02:16.5]} 28. e4 {[%clk 0:02:18]} 28... Qxd3+ {[%clk 0:01:58.5]} 29. Kxd3
{[%clk 0:02:19.9]} 29... Rd8+ {[%clk 0:01:53.4]} 30. Kc2 {[%clk 0:02:19.7]}
30... Nd6 {[%clk 0:01:53.6]} 31. f3 {[%clk 0:02:11.9]} 31... Rg8 {[%clk
0:01:54.3]} 32. Be1 {[%clk 0:02:13.4]} 32... f5 {[%clk 0:01:51.9]} 33. Kd3
{[%clk 0:02:14.4]} 33... Rd8 {[%clk 0:01:47.2]} 34. Kc2 {[%clk 0:02:14.5]} 34...
fxe4 {[%clk 0:01:47.5]} 35. fxe4 {[%clk 0:02:11.9]} 35... Nxe4 {[%clk
0:01:46.8]} 36. Nc3 {[%clk 0:02:02.3]} 36... Ng3 {[%clk 0:01:44]} 37. Bxg3
{[%clk 0:01:56.8]} 37... hxg3 {[%clk 0:01:44.1]} 38. Rg2 {[%clk 0:01:58.7]}
38... Bf2 {[%clk 0:01:32.8]} 39. Ne4 {[%clk 0:01:59.7]} 39... Rh8 {[%clk
0:01:30.4]} 40. Nxg3 {[%clk 0:02:00.4]} 40... Rxh3 {[%clk 0:01:30.7]} 41. Ne4
{[%clk 0:02:01.6]} 41... Bd4 {[%clk 0:01:31]} 42. Rg7 {[%clk 0:02:02.5]} 42...
Rh2+ {[%clk 0:01:31.8]} 43. Kd3 {[%clk 0:02:03.3]} 43... Rh3+ {[%clk 0:01:30.9]}
44. Kd2 {[%clk 0:02:02.9]} 44... Rh2+ {[%clk 0:01:31.9]} 45. Kd3 {[%clk
0:02:00.9]} 45... Rh3+ {[%clk 0:01:32.7]} 46. Kd2 {[%clk 0:01:55.8]} 46... Rh2+
{[%clk 0:01:20.6]} 47. Ke1 {[%clk 0:01:35.6]} 47... Rxa2 {[%clk 0:01:22.5]} 48.
Nd6+ {[%clk 0:01:36.6]} 48... Kd8 {[%clk 0:01:22.3]} 49. Nxb7+ {[%clk
0:01:37.8]} 49... Ke8 {[%clk 0:01:23.3]} 50. Nd6+ {[%clk 0:01:39.4]} 50... Kf8
{[%clk 0:01:24.1]} 51. Rc7 {[%clk 0:01:40.2]} 51... c5 {[%clk 0:01:23.7]} 52.
Ne4 {[%clk 0:01:28.2]} 52... Rb2 {[%clk 0:01:20.6]} 53. Nxc5 {[%clk 0:01:29.1]}
53... Bxc5 {[%clk 0:01:21.2]} 54. Rxc5 {[%clk 0:01:31]} 54... Rxb3 {[%clk
0:01:22.2]} 55. Rxe5 {[%clk 0:01:32.6]} 55... Rc3 {[%clk 0:01:18.9]} 56. c5
{[%clk 0:01:33.8]} 56... Kf7 {[%clk 0:01:14.7]} 57. Kd2 {[%clk 0:01:35.1]} 57...
Kf6 {[%clk 0:01:14.5]} 58. Rd5 {[%clk 0:01:32.4]} 58... Rh3 {[%clk 0:01:11.4]}
59. c6 {[%clk 0:01:30.5]} 59... Rh7 {[%clk 0:01:11.2]} 60. Rd6+ {[%clk
0:01:23.6]} 60... Ke5 {[%clk 0:01:11.2]} 61. Rd7 {[%clk 0:01:24.3]} 61... Rh6
{[%clk 0:01:11.4]} 62. Re7+ {[%clk 0:01:12.6]} 62... Kd6 {[%clk 0:01:03.7]} 63.
Ra7 {[%clk 0:01:10.2]} 63... Rh8 {[%clk 0:01:01.2]} 64. Rxa6 {[%clk 0:01:09.4]}
64... Rc8 {[%clk 0:01:01.7]} 65. Kd3 {[%clk 0:01:10.9]} 65... Rxc6 {[%clk
0:01:02.4]} 66. Rxc6+ {[%clk 0:01:12.8]} 66... Kxc6 {[%clk 0:01:02.9]} 1/2-1/2

[Event "*** MasterClass Titled Tuesday Blitz"]
[Site "Chess.com"]
[Date "2017.09.05"]
[Round "5"]
[White "ALeks_Ivlev"]
[Black "Sebastian"]
[Result "0-1"]
[WhiteElo "2440"]
[BlackElo "2820"]
[TimeControl "180+2"]
[EndTime "14:15:32 PDT"]
[Termination "Sebastian won by resignation"]

1. d4 {[%clk 0:02:59.2]} 1... d5 {[%clk 0:03:00.5]} 2. c4 {[%clk 0:03:00.1]}
2... e6 {[%clk 0:03:01.9]} 3. Nc3 {[%clk 0:03:00.9]} 3... Nf6 {[%clk 0:03:03.6]}
4. Bg5 {[%clk 0:03:01.4]} 4... Be7 {[%clk 0:03:03.1]} 5. cxd5 {[%clk 0:03:02.4]}
5... Nxd5 {[%clk 0:03:03.5]} 6. Bxe7 {[%clk 0:03:01.8]} 6... Qxe7 {[%clk
0:03:05.4]} 7. Nf3 {[%clk 0:03:00]} 7... O-O {[%clk 0:03:05.1]} 8. e3 {[%clk
0:03:00.1]} 8... Nxc3 {[%clk 0:03:02]} 9. bxc3 {[%clk 0:03:00.9]} 9... c5 {[%clk
0:03:03.9]} 10. Bd3 {[%clk 0:03:01.7]} 10... b6 {[%clk 0:03:03.4]} 11. O-O
{[%clk 0:03:01.4]} 11... Bb7 {[%clk 0:03:03.8]} 12. e4 {[%clk 0:03:02.3]} 12...
Rd8 {[%clk 0:03:01]} 13. Qe2 {[%clk 0:03:02.9]} 13... Nc6 {[%clk 0:03:00.1]} 14.
Qe3 {[%clk 0:01:56.6]} 14... cxd4 {[%clk 0:02:59.9]} 15. cxd4 {[%clk 0:01:57.5]}
15... Nxd4 {[%clk 0:03:01.3]} 16. Nxd4 {[%clk 0:01:54.9]} 16... Qc5 {[%clk
0:03:01.5]} 17. Rad1 {[%clk 0:01:40]} 17... Rxd4 {[%clk 0:02:52.6]} 18. Qh3
{[%clk 0:01:30.5]} 18... Rad8 {[%clk 0:02:48.9]} 19. Rc1 {[%clk 0:01:28.8]}
19... Qa3 {[%clk 0:01:51.7]} 20. Bb5 {[%clk 0:01:20.5]} 20... Qxh3 {[%clk
0:01:50.6]} 21. gxh3 {[%clk 0:01:21.7]} 21... Bxe4 {[%clk 0:01:49.8]} 22. Rc7
{[%clk 0:01:22.7]} 22... R4d5 {[%clk 0:01:45]} 23. f3 {[%clk 0:01:20.4]} 23...
Rg5+ {[%clk 0:01:32.3]} 24. Kf2 {[%clk 0:01:21.3]} 24... Bxf3 {[%clk 0:01:30.4]}
25. Kxf3 {[%clk 0:01:12.2]} 25... Rxb5 {[%clk 0:01:30.7]} 26. Rd1 {[%clk
0:01:12.8]} 26... Rf8 {[%clk 0:01:16.8]} 27. Rxa7 {[%clk 0:01:13.7]} 27... Rb4
{[%clk 0:01:10.2]} 28. Rdd7 {[%clk 0:01:11.1]} 28... g5 {[%clk 0:01:10]} 29. a3
{[%clk 0:01:07.3]} 29... Rf4+ {[%clk 0:01:08.9]} 30. Kg3 {[%clk 0:01:06.2]}
30... Rc8 {[%clk 0:01:09.1]} 31. Rd3 {[%clk 0:01:05.3]} 31... h5 {[%clk
0:01:04.1]} 32. Rb7 {[%clk 0:00:43.1]} 32... Rc2 {[%clk 0:01:02]} 33. h4 {[%clk
0:00:41.8]} 33... Rg4+ {[%clk 0:00:58]} 34. Kf3 {[%clk 0:00:42.6]} 34... Rxh4
{[%clk 0:00:57.7]} 35. Rd8+ {[%clk 0:00:39.3]} 35... Kg7 {[%clk 0:00:58.1]} 36.
Rxb6 {[%clk 0:00:40.2]} 36... Rh3+ {[%clk 0:00:48.4]} 37. Ke4 {[%clk 0:00:40.6]}
37... Rc4+ {[%clk 0:00:46.8]} 38. Ke5 {[%clk 0:00:41.8]} 38... Rxa3 {[%clk
0:00:43.2]} 39. Rd1 {[%clk 0:00:32.1]} 39... Ra5+ {[%clk 0:00:36.2]} 40. Kd6
{[%clk 0:00:32.8]} 40... Rd5+ {[%clk 0:00:36.1]} 41. Rxd5 {[%clk 0:00:33.3]}
41... exd5 {[%clk 0:00:38]} 42. Kxd5 {[%clk 0:00:34.8]} 42... Rh4 {[%clk
0:00:38.2]} 43. Rb2 {[%clk 0:00:35]} 43... Kg6 {[%clk 0:00:39.4]} 44. Ke5 {[%clk
0:00:35.6]} 44... f6+ {[%clk 0:00:40.9]} 45. Kd5 {[%clk 0:00:33.2]} 45... Rf4
{[%clk 0:00:41.6]} 46. Ke6 {[%clk 0:00:32]} 46... h4 {[%clk 0:00:42.5]} 47. Rb8
{[%clk 0:00:30.9]} 47... Re4+ {[%clk 0:00:43.3]} 48. Kd5 {[%clk 0:00:32]} 48...
Re2 {[%clk 0:00:43.9]} 49. h3 {[%clk 0:00:33.4]} 49... Re3 {[%clk 0:00:44.7]}
50. Kd4 {[%clk 0:00:34.4]} 50... Rxh3 {[%clk 0:00:45.4]} 51. Ke4 {[%clk
0:00:35.9]} 51... f5+ {[%clk 0:00:46.1]} 52. Kd4 {[%clk 0:00:36.8]} 52... Rh1
{[%clk 0:00:44.3]} 53. Rh8 {[%clk 0:00:36.5]} 53... Re1 {[%clk 0:00:43.4]} 54.
Kd3 {[%clk 0:00:36.1]} 54... f4 {[%clk 0:00:43.3]} 55. Kd2 {[%clk 0:00:36.9]}
55... Re7 {[%clk 0:00:44.7]} 0-1

[Event "*** MasterClass Titled Tuesday Blitz"]
[Site "Chess.com"]
[Date "2017.09.05"]
[Round "5"]
[White "jk13"]
[Black "OparinGrigoriy"]
[Result "0-1"]
[WhiteElo "2422"]
[BlackElo "2613"]
[TimeControl "180+2"]
[EndTime "14:15:34 PDT"]
[Termination "OparinGrigoriy won by resignation"]

1. e4 {[%clk 0:03:02]} 1... c5 {[%clk 0:03:00.3]} 2. c3 {[%clk 0:03:02.9]} 2...
Nf6 {[%clk 0:03:00.4]} 3. e5 {[%clk 0:03:04.2]} 3... Nd5 {[%clk 0:03:01.8]} 4.
Bc4 {[%clk 0:03:05.8]} 4... Nb6 {[%clk 0:03:01.3]} 5. Bb3 {[%clk 0:03:07.2]}
5... Nc6 {[%clk 0:03:02.3]} 6. Nf3 {[%clk 0:03:08.1]} 6... d5 {[%clk 0:03:03.4]}
7. exd6 {[%clk 0:03:09]} 7... Qxd6 {[%clk 0:03:04.9]} 8. O-O {[%clk 0:03:09.7]}
8... Be6 {[%clk 0:03:05.6]} 9. Bxe6 {[%clk 0:03:09.1]} 9... Qxe6 {[%clk
0:03:07.5]} 10. a4 {[%clk 0:03:10.5]} 10... Rd8 {[%clk 0:03:02.8]} 11. a5 {[%clk
0:03:11.4]} 11... Nd5 {[%clk 0:03:04.3]} 12. d4 {[%clk 0:03:05.2]} 12... cxd4
{[%clk 0:02:55.5]} 13. Nxd4 {[%clk 0:03:07.1]} 13... Nxd4 {[%clk 0:02:56.6]} 14.
Qxd4 {[%clk 0:03:08.6]} 14... a6 {[%clk 0:02:58]} 15. Rd1 {[%clk 0:03:03.3]}
15... Qf6 {[%clk 0:02:45.7]} 16. Qa7 {[%clk 0:02:45]} 16... Qc6 {[%clk
0:02:44.4]} 17. Be3 {[%clk 0:02:18.7]} 17... e6 {[%clk 0:02:42.4]} 18. Qd4
{[%clk 0:02:05.5]} 18... Qc7 {[%clk 0:02:30.1]} 19. Qa4+ {[%clk 0:01:44.6]}
19... Rd7 {[%clk 0:02:24.4]} 20. Bb6 {[%clk 0:01:30.7]} 20... Qc6 {[%clk
0:02:15]} 21. Qxc6 {[%clk 0:01:21.2]} 21... bxc6 {[%clk 0:02:16.9]} 22. Nd2
{[%clk 0:01:17.9]} 22... Be7 {[%clk 0:02:17.5]} 23. Nc4 {[%clk 0:01:10.1]} 23...
f6 {[%clk 0:02:18.6]} 24. Kf1 {[%clk 0:01:07.9]} 24... Kf7 {[%clk 0:02:16.8]}
25. Ne3 {[%clk 0:01:05.2]} 25... Rb8 {[%clk 0:02:17.1]} 26. Nc4 {[%clk
0:00:58.5]} 26... Rbb7 {[%clk 0:02:15.7]} 27. g3 {[%clk 0:00:59.3]} 27... e5
{[%clk 0:02:15.6]} 28. Ke2 {[%clk 0:01:00.3]} 28... Ke6 {[%clk 0:02:16.2]} 29.
f3 {[%clk 0:01:01.2]} 29... g5 {[%clk 0:02:15.7]} 30. g4 {[%clk 0:00:58.6]}
30... Bd8 {[%clk 0:02:09.5]} 31. Be3 {[%clk 0:00:53.2]} 31... Rb5 {[%clk
0:02:06.2]} 32. Rd3 {[%clk 0:00:51.7]} 32... Rdb7 {[%clk 0:02:01.1]} 33. Ra2
{[%clk 0:00:47.8]} 33... Rb3 {[%clk 0:01:51.8]} 34. Bc1 {[%clk 0:00:46]} 34...
Be7 {[%clk 0:01:49.7]} 35. Kd1 {[%clk 0:00:46.1]} 35... Nb4 {[%clk 0:01:44.4]}
36. cxb4 {[%clk 0:00:29]} 36... Rxd3+ {[%clk 0:01:45]} 37. Ke2 {[%clk
0:00:30.6]} 37... Rd4 {[%clk 0:01:45.4]} 38. b3 {[%clk 0:00:29.5]} 38... Rxb4
{[%clk 0:01:45.6]} 39. Rb2 {[%clk 0:00:28]} 39... Rdxc4 {[%clk 0:01:42.4]} 40.
bxc4 {[%clk 0:00:28.8]} 40... Rxb2+ {[%clk 0:01:44.2]} 41. Bxb2 {[%clk
0:00:29.9]} 41... Bb4 {[%clk 0:01:46.5]} 42. Kd3 {[%clk 0:00:29.9]} 42... f5
{[%clk 0:01:48.8]} 43. h3 {[%clk 0:00:28.6]} 43... Bxa5 {[%clk 0:01:50.6]} 44.
Ba3 {[%clk 0:00:29.8]} 44... Bd8 {[%clk 0:01:33]} 45. Bc5 {[%clk 0:00:29.7]}
45... a5 {[%clk 0:01:10.9]} 46. Ba3 {[%clk 0:00:30.5]} 46... a4 {[%clk
0:01:11.2]} 47. Kc3 {[%clk 0:00:29.3]} 47... Ba5+ {[%clk 0:01:07.1]} 48. Kd3
{[%clk 0:00:30.2]} 48... Bd8 {[%clk 0:01:01.9]} 49. Kc3 {[%clk 0:00:30.8]} 49...
fxg4 {[%clk 0:01:00.9]} 50. hxg4 {[%clk 0:00:30.9]} 50... Be7 {[%clk 0:01:00.8]}
51. Bc1 {[%clk 0:00:30.5]} 51... a3 {[%clk 0:00:56.1]} 52. Kb3 {[%clk
0:00:30.6]} 52... e4 {[%clk 0:00:57]} 53. fxe4 {[%clk 0:00:30.5]} 53... Ke5
{[%clk 0:00:58.4]} 54. Bxa3 {[%clk 0:00:28.1]} 54... Bxa3 {[%clk 0:00:58.7]} 55.
Kxa3 {[%clk 0:00:30.1]} 55... Kxe4 {[%clk 0:01:00]} 56. Kb4 {[%clk 0:00:31.7]}
56... Kd4 {[%clk 0:01:01.1]} 0-1

[Event "*** MasterClass Titled Tuesday Blitz"]
[Site "Chess.com"]
[Date "2017.09.05"]
[Round "5"]
[White "MartinMatthiesen"]
[Black "HanSchut"]
[Result "1/2-1/2"]
[WhiteElo "2308"]
[BlackElo "2323"]
[TimeControl "180+2"]
[EndTime "14:15:34 PDT"]
[Termination "Game drawn by agreement"]

1. d4 {[%clk 0:03:01.9]} 1... Nf6 {[%clk 0:03:00.7]} 2. c4 {[%clk 0:03:00.3]}
2... g6 {[%clk 0:03:01.6]} 3. Nc3 {[%clk 0:03:00.2]} 3... d5 {[%clk 0:03:01.5]}
4. cxd5 {[%clk 0:02:59.9]} 4... Nxd5 {[%clk 0:03:03.4]} 5. e4 {[%clk 0:03:01]}
5... Nxc3 {[%clk 0:03:04.1]} 6. bxc3 {[%clk 0:03:02.9]} 6... Bg7 {[%clk
0:03:05.5]} 7. Bc4 {[%clk 0:03:04.3]} 7... c5 {[%clk 0:03:06.4]} 8. Ne2 {[%clk
0:03:05.7]} 8... O-O {[%clk 0:03:03.9]} 9. O-O {[%clk 0:03:05.9]} 9... Nc6
{[%clk 0:03:04.4]} 10. Be3 {[%clk 0:03:05.7]} 10... Bg4 {[%clk 0:03:04.7]} 11.
f3 {[%clk 0:03:06]} 11... Na5 {[%clk 0:03:05.5]} 12. Bd3 {[%clk 0:03:04.6]}
12... cxd4 {[%clk 0:03:06.1]} 13. cxd4 {[%clk 0:03:04.8]} 13... Be6 {[%clk
0:03:06.8]} 14. d5 {[%clk 0:03:05.7]} 14... Bxa1 {[%clk 0:03:07.2]} 15. Qxa1
{[%clk 0:03:06.3]} 15... f6 {[%clk 0:03:08.1]} 16. Kh1 {[%clk 0:03:01.4]} 16...
Bd7 {[%clk 0:03:03.7]} 17. e5 {[%clk 0:02:50.3]} 17... Rc8 {[%clk 0:02:57.7]}
18. Nf4 {[%clk 0:02:12.3]} 18... Nc4 {[%clk 0:02:56.5]} 19. Bxc4 {[%clk
0:01:50.1]} 19... Rxc4 {[%clk 0:02:54.8]} 20. d6 {[%clk 0:01:41.1]} 20... Bb5
{[%clk 0:02:30.2]} 21. Ne6 {[%clk 0:01:29.3]} 21... Qe8 {[%clk 0:02:02.6]} 22.
Nxf8 {[%clk 0:01:27.2]} 22... Qxf8 {[%clk 0:02:01.3]} 23. Rd1 {[%clk 0:01:11.5]}
23... exd6 {[%clk 0:01:56.9]} 24. exf6 {[%clk 0:01:04.9]} 24... Be8 {[%clk
0:01:44.3]} 25. Bxa7 {[%clk 0:00:59.4]} 25... Bf7 {[%clk 0:01:44.2]} 26. Bd4
{[%clk 0:00:37.9]} 26... Qa8 {[%clk 0:01:32.3]} 27. a3 {[%clk 0:00:36.1]} 27...
Qc8 {[%clk 0:01:27]} 28. h3 {[%clk 0:00:30.7]} 28... Rc2 {[%clk 0:01:27.2]} 29.
Be3 {[%clk 0:00:28.2]} 29... Qe6 {[%clk 0:01:21.4]} 30. Qd4 {[%clk 0:00:27.8]}
30... Rc6 {[%clk 0:01:11.5]} 31. Bf2 {[%clk 0:00:28.3]} 31... d5 {[%clk
0:01:09]} 32. Bh4 {[%clk 0:00:29.3]} 32... h6 {[%clk 0:01:10]} 33. Re1 {[%clk
0:00:29.9]} 33... Qd6 {[%clk 0:01:03.4]} 34. Re7 {[%clk 0:00:28.9]} 34... Rc4
{[%clk 0:00:59.4]} 35. Qf2 {[%clk 0:00:27.7]} 35... g5 {[%clk 0:00:55.3]} 36.
Bg3 {[%clk 0:00:27.2]} 36... Qxf6 {[%clk 0:00:56.1]} 37. Rxb7 {[%clk 0:00:27.4]}
37... Rc1+ {[%clk 0:00:56.2]} 38. Kh2 {[%clk 0:00:28]} 38... d4 {[%clk
0:00:54.8]} 39. Rb8+ {[%clk 0:00:25.2]} 39... Kh7 {[%clk 0:00:54.4]} 40. Qe2
{[%clk 0:00:25.1]} 40... h5 {[%clk 0:00:41.7]} 41. Be5 {[%clk 0:00:24.9]} 41...
Qf5 {[%clk 0:00:38.5]} 42. Rf8 {[%clk 0:00:18.1]} 42... Kg6 {[%clk 0:00:26.1]}
43. g4 {[%clk 0:00:19.2]} 43... Qc2 {[%clk 0:00:24.4]} 44. gxh5+ {[%clk
0:00:19.1]} 44... Kxh5 {[%clk 0:00:25.1]} 45. Qxc2 {[%clk 0:00:17]} 45... Rxc2+
{[%clk 0:00:27]} 46. Kg3 {[%clk 0:00:18.3]} 46... Bd5 {[%clk 0:00:25.6]} 47.
Bxd4 {[%clk 0:00:19.2]} 47... Rd2 {[%clk 0:00:26.6]} 48. Be5 {[%clk 0:00:19.7]}
1/2-1/2